[Event "*** Titled Tuesday Blitz"]
[Site "Chess.com"]
[Date "2019.01.01"]
[Round "3"]
[White "WinnerOleg"]
[Black "pawnhopper316"]
[Result "1/2-1/2"]
[WhiteElo "2390"]
[BlackElo "2235"]
[TimeControl "180+2"]
[EndTime "13:35:59 PST"]
[Termination "Game drawn by repetition"]

1. d4 {[%clk 0:03:01.8]} 1... Nf6 {[%clk 0:03:00.2]} 2. c4 {[%clk 0:03:00.4]}
2... c5 {[%clk 0:03:00.6]} 3. d5 {[%clk 0:03:01.4]} 3... e6 {[%clk 0:03:01.6]}
4. Nc3 {[%clk 0:03:02.1]} 4... exd5 {[%clk 0:03:02.4]} 5. cxd5 {[%clk 0:03:04]}
5... d6 {[%clk 0:03:03.1]} 6. e4 {[%clk 0:03:05.2]} 6... g6 {[%clk 0:03:04.2]}
7. f4 {[%clk 0:03:06.7]} 7... Bg7 {[%clk 0:03:05.4]} 8. Bb5+ {[%clk 0:03:08.3]}
8... Nfd7 {[%clk 0:03:05.6]} 9. Bd3 {[%clk 0:03:09.5]} 9... O-O {[%clk
0:03:06.3]} 10. Nf3 {[%clk 0:03:10.7]} 10... Re8 {[%clk 0:02:48]} 11. O-O {[%clk
0:03:11.4]} 11... Nf6 {[%clk 0:02:44.9]} 12. h3 {[%clk 0:03:10.9]} 12... c4
{[%clk 0:02:44.9]} 13. Bc2 {[%clk 0:03:04.7]} 13... b5 {[%clk 0:02:44.4]} 14. e5
{[%clk 0:02:52.6]} 14... dxe5 {[%clk 0:02:37.3]} 15. fxe5 {[%clk 0:02:54.5]}
15... Nh5 {[%clk 0:02:35.9]} 16. g4 {[%clk 0:02:14.5]} 16... Ng3 {[%clk
0:02:15.1]} 17. Re1 {[%clk 0:02:15.5]} 17... b4 {[%clk 0:02:15.8]} 18. Nb5
{[%clk 0:02:08.8]} 18... Qb6+ {[%clk 0:02:13.2]} 19. Nbd4 {[%clk 0:01:49.1]}
19... h5 {[%clk 0:01:57]} 20. Bf4 {[%clk 0:01:33.3]} 20... hxg4 {[%clk
0:01:48.2]} 21. hxg4 {[%clk 0:01:32.4]} 21... Bxg4 {[%clk 0:01:48.7]} 22. Bxg3
{[%clk 0:01:33.7]} 22... Bxf3 {[%clk 0:01:46.6]} 23. Qxf3 {[%clk 0:01:23.4]}
23... Qxd4+ {[%clk 0:01:45.1]} 24. Bf2 {[%clk 0:01:02]} 24... Qxb2 {[%clk
0:01:42.3]} 25. Ba4 {[%clk 0:01:01.3]} 25... Rxe5 {[%clk 0:01:38.2]} 26. d6
{[%clk 0:00:56.9]} 26... Rg5+ {[%clk 0:01:24.8]} 27. Kh1 {[%clk 0:00:14.9]}
27... Rh5+ {[%clk 0:01:10.6]} 28. Kg1 {[%clk 0:00:16.3]} 28... Rg5+ {[%clk
0:01:11]} 29. Kh1 {[%clk 0:00:17.8]} 29... Rh5+ {[%clk 0:00:33.2]} 30. Kg1
{[%clk 0:00:19.1]} 30... Rg5+ {[%clk 0:00:33.6]} 31. Kh1 {[%clk 0:00:19.9]}
31... Rh5+ {[%clk 0:00:34]} 1/2-1/2

[Event "*** Titled Tuesday Blitz"]
[Site "Chess.com"]
[Date "2019.01.01"]
[Round "3"]
[White "biostatistician"]
[Black "TheBigBadChessDad"]
[Result "1-0"]
[WhiteElo "2464"]
[BlackElo "2286"]
[TimeControl "180+2"]
[EndTime "13:36:01 PST"]
[Termination "biostatistician won by resignation"]

1. d4 {[%clk 0:03:01.9]} 1... Nf6 {[%clk 0:03:00.5]} 2. Nf3 {[%clk 0:03:03.8]}
2... e6 {[%clk 0:03:01.5]} 3. c4 {[%clk 0:03:05.3]} 3... d5 {[%clk 0:03:00.8]}
4. Bg5 {[%clk 0:03:04.5]} 4... Be7 {[%clk 0:03:00.8]} 5. Nc3 {[%clk 0:03:03.2]}
5... h6 {[%clk 0:03:01.1]} 6. Bh4 {[%clk 0:03:02.8]} 6... O-O {[%clk 0:03:02.3]}
7. e3 {[%clk 0:03:03.1]} 7... b6 {[%clk 0:03:03.1]} 8. Be2 {[%clk 0:03:03.3]}
8... Bb7 {[%clk 0:03:02.7]} 9. Bxf6 {[%clk 0:03:04.7]} 9... Bxf6 {[%clk
0:03:03.5]} 10. cxd5 {[%clk 0:03:06.6]} 10... exd5 {[%clk 0:03:04.8]} 11. b4
{[%clk 0:03:07.9]} 11... c6 {[%clk 0:02:57.7]} 12. O-O {[%clk 0:03:06.9]} 12...
Nd7 {[%clk 0:02:57.7]} 13. Qb3 {[%clk 0:03:05.7]} 13... b5 {[%clk 0:02:54.4]}
14. a4 {[%clk 0:03:05.4]} 14... a6 {[%clk 0:02:55.5]} 15. a5 {[%clk 0:03:05.6]}
15... Re8 {[%clk 0:02:54]} 16. Bd3 {[%clk 0:03:05.7]} 16... Be7 {[%clk
0:02:43.6]} 17. Rfe1 {[%clk 0:02:58.8]} 17... Nf6 {[%clk 0:02:43.8]} 18. e4
{[%clk 0:02:39.9]} 18... dxe4 {[%clk 0:02:37.8]} 19. Nxe4 {[%clk 0:02:40.5]}
19... Nxe4 {[%clk 0:02:37.6]} 20. Bxe4 {[%clk 0:02:42.4]} 20... Bd6 {[%clk
0:02:17.7]} 21. Ne5 {[%clk 0:02:28.6]} 21... Bxe5 {[%clk 0:01:55.5]} 22. dxe5
{[%clk 0:02:30.5]} 22... Qg5 {[%clk 0:01:38.9]} 23. Qc3 {[%clk 0:02:18.9]} 23...
Kh8 {[%clk 0:01:15]} 24. Bf3 {[%clk 0:02:13.6]} 24... Re6 {[%clk 0:01:13.9]} 25.
Re3 {[%clk 0:02:07.2]} 25... Rae8 {[%clk 0:01:10.4]} 26. Rae1 {[%clk 0:02:07.9]}
26... h5 {[%clk 0:01:04]} 27. Qc5 {[%clk 0:01:33.5]} 27... R8e7 {[%clk
0:01:01.1]} 28. g3 {[%clk 0:01:19.4]} 28... h4 {[%clk 0:01:01.2]} 29. Kg2 {[%clk
0:01:20.3]} 29... Rh6 {[%clk 0:00:54.8]} 30. Re4 {[%clk 0:01:02.6]} 30... hxg3
{[%clk 0:00:50.3]} 31. hxg3 {[%clk 0:01:04.5]} 31... Bc8 {[%clk 0:00:22.8]} 32.
Rh1 {[%clk 0:00:52.1]} 32... Rxh1 {[%clk 0:00:21.7]} 33. Kxh1 {[%clk 0:00:54]}
33... Bf5 {[%clk 0:00:21.2]} 34. Rh4+ {[%clk 0:00:50.4]} 34... Kg8 {[%clk
0:00:21.8]} 35. Rh5 {[%clk 0:00:50.2]} 35... Qg6 {[%clk 0:00:19]} 36. Qxe7
{[%clk 0:00:49.6]} 1-0

[Event "*** Titled Tuesday Blitz"]
[Site "Chess.com"]
[Date "2019.01.01"]
[Round "3"]
[White "BogdanDeac"]
[Black "Anar_Aliakbarov"]
[Result "1-0"]
[WhiteElo "2745"]
[BlackElo "2462"]
[TimeControl "180+2"]
[EndTime "13:36:04 PST"]
[Termination "BogdanDeac won by resignation"]

1. e4 {[%clk 0:03:01.9]} 1... e5 {[%clk 0:02:57.9]} 2. Nf3 {[%clk 0:03:02.2]}
2... Nf6 {[%clk 0:02:58.7]} 3. Nxe5 {[%clk 0:03:03]} 3... d6 {[%clk 0:02:59.7]}
4. Nf3 {[%clk 0:03:02.4]} 4... Nxe4 {[%clk 0:02:59.5]} 5. d4 {[%clk 0:03:03.3]}
5... d5 {[%clk 0:02:59.1]} 6. Bd3 {[%clk 0:03:04.2]} 6... Bd6 {[%clk 0:02:58.7]}
7. O-O {[%clk 0:03:04.9]} 7... O-O {[%clk 0:02:59]} 8. c4 {[%clk 0:03:05.9]}
8... c6 {[%clk 0:02:59.2]} 9. Nc3 {[%clk 0:03:06.9]} 9... Nxc3 {[%clk
0:02:58.6]} 10. bxc3 {[%clk 0:03:08.8]} 10... dxc4 {[%clk 0:03:00.2]} 11. Bxc4
{[%clk 0:03:10.7]} 11... Bf5 {[%clk 0:03:01.5]} 12. Bg5 {[%clk 0:03:11.4]} 12...
Qc7 {[%clk 0:02:53.6]} 13. Re1 {[%clk 0:03:10.1]} 13... Nd7 {[%clk 0:02:40.2]}
14. h3 {[%clk 0:03:09.3]} 14... Rae8 {[%clk 0:02:33.8]} 15. Nh4 {[%clk 0:03:10]}
15... Be4 {[%clk 0:02:08.7]} 16. Qg4 {[%clk 0:03:08.3]} 16... Bd5 {[%clk
0:01:58.2]} 17. Rxe8 {[%clk 0:03:06.2]} 17... Rxe8 {[%clk 0:01:50.5]} 18. Bf1
{[%clk 0:03:08.1]} 18... Nf8 {[%clk 0:01:33.1]} 19. Nf5 {[%clk 0:03:07.8]} 19...
Ng6 {[%clk 0:01:28.6]} 20. Nxd6 {[%clk 0:02:59.4]} 20... Qxd6 {[%clk 0:01:28.3]}
21. c4 {[%clk 0:03:01.3]} 21... Be6 {[%clk 0:01:24.1]} 22. Qd1 {[%clk
0:03:01.7]} 22... h6 {[%clk 0:01:19.8]} 23. Be3 {[%clk 0:03:01.8]} 23... Rd8
{[%clk 0:01:20.5]} 24. Rb1 {[%clk 0:02:59.7]} 24... b6 {[%clk 0:01:20.9]} 25.
Qa4 {[%clk 0:03:00.3]} 25... Rd7 {[%clk 0:01:08.8]} 26. c5 {[%clk 0:02:59.9]}
26... bxc5 {[%clk 0:01:06.3]} 27. dxc5 {[%clk 0:03:00.1]} 27... Qd5 {[%clk
0:01:06.6]} 28. Qa6 {[%clk 0:02:51.5]} 28... Kh7 {[%clk 0:00:55.7]} 29. Rb8
{[%clk 0:02:50.7]} 29... Qe5 {[%clk 0:00:45.5]} 30. Qc8 {[%clk 0:02:47.7]} 30...
Nh4 {[%clk 0:00:39.3]} 31. Qh8+ {[%clk 0:02:35.7]} 31... Kg6 {[%clk 0:00:38.7]}
32. Rb4 {[%clk 0:02:36.2]} 32... Nf5 {[%clk 0:00:27.5]} 33. Rg4+ {[%clk
0:02:34.7]} 33... Kf6 {[%clk 0:00:27]} 34. Bxh6 {[%clk 0:02:33.4]} 34... Ke7
{[%clk 0:00:19.3]} 35. Bg5+ {[%clk 0:02:28.9]} 35... f6 {[%clk 0:00:18.2]} 36.
Bf4 {[%clk 0:02:29.3]} 36... Qxc5 {[%clk 0:00:10.3]} 37. Be3 {[%clk 0:02:18.6]}
37... Nxe3 {[%clk 0:00:08.4]} 38. Qxg7+ {[%clk 0:02:12.7]} 38... Kd8 {[%clk
0:00:06.5]} 39. Qxf6+ {[%clk 0:02:12.2]} 39... Kc7 {[%clk 0:00:07.7]} 40. Rg5
{[%clk 0:02:06.8]} 40... Rd1 {[%clk 0:00:03.7]} 41. Rxc5 {[%clk 0:02:05.1]}
41... Rxf1+ {[%clk 0:00:03.8]} 42. Kh2 {[%clk 0:02:05.8]} 1-0

[Event "*** Titled Tuesday Blitz"]
[Site "Chess.com"]
[Date "2019.01.01"]
[Round "3"]
[White "rikyshi"]
[Black "Triumphmate"]
[Result "1-0"]
[WhiteElo "2203"]
[BlackElo "2212"]
[TimeControl "180+2"]
[EndTime "13:36:08 PST"]
[Termination "rikyshi won by resignation"]

1. d4 {[%clk 0:03:01.9]} 1... Nf6 {[%clk 0:02:58.8]} 2. Nc3 {[%clk 0:03:02.3]}
2... d5 {[%clk 0:02:58]} 3. Bf4 {[%clk 0:03:01.6]} 3... e6 {[%clk 0:02:49.9]} 4.
Nb5 {[%clk 0:03:00.1]} 4... Na6 {[%clk 0:02:47.9]} 5. e3 {[%clk 0:02:55.2]} 5...
c6 {[%clk 0:02:48.1]} 6. Nc3 {[%clk 0:02:55.9]} 6... Nb8 {[%clk 0:02:41.8]} 7.
a3 {[%clk 0:02:53.4]} 7... Bd6 {[%clk 0:02:42.8]} 8. Nf3 {[%clk 0:02:53.8]} 8...
O-O {[%clk 0:02:42.8]} 9. Ne5 {[%clk 0:02:48.1]} 9... Qc7 {[%clk 0:02:43.4]} 10.
Bd3 {[%clk 0:02:45.5]} 10... Nbd7 {[%clk 0:02:44.6]} 11. Nxd7 {[%clk 0:02:39.2]}
11... Bxd7 {[%clk 0:02:44.5]} 12. Qf3 {[%clk 0:02:26.1]} 12... e5 {[%clk
0:02:38.5]} 13. dxe5 {[%clk 0:02:25.2]} 13... Bxe5 {[%clk 0:02:40.4]} 14. Bxe5
{[%clk 0:02:24.5]} 14... Qxe5 {[%clk 0:02:42.3]} 15. Qg3 {[%clk 0:02:24.2]}
15... Rfe8 {[%clk 0:02:35.9]} 16. O-O-O {[%clk 0:02:22]} 16... b5 {[%clk
0:02:34.8]} 17. Qxe5 {[%clk 0:02:18.3]} 17... Rxe5 {[%clk 0:02:35.3]} 18. h3
{[%clk 0:02:19.2]} 18... a5 {[%clk 0:02:35.9]} 19. Ne2 {[%clk 0:02:19]} 19... c5
{[%clk 0:02:35]} 20. c3 {[%clk 0:02:14.1]} 20... b4 {[%clk 0:02:34.8]} 21. Kd2
{[%clk 0:01:39.3]} 21... Ba4 {[%clk 0:02:32.7]} 22. Rc1 {[%clk 0:01:34.5]} 22...
Rb8 {[%clk 0:02:30.1]} 23. cxb4 {[%clk 0:01:34.7]} 23... cxb4 {[%clk 0:02:30.7]}
24. axb4 {[%clk 0:01:35.8]} 24... Rxb4 {[%clk 0:02:31]} 25. Rc8+ {[%clk
0:01:33.7]} 25... Be8 {[%clk 0:02:28.4]} 26. Kc3 {[%clk 0:01:21.4]} 26... g6
{[%clk 0:02:28]} 27. Ra1 {[%clk 0:01:19.6]} 27... Kg7 {[%clk 0:02:17.1]} 28.
Rxa5 {[%clk 0:01:20]} 28... Rb7 {[%clk 0:02:18.5]} 29. Nd4 {[%clk 0:01:20.4]}
29... Bd7 {[%clk 0:02:09.6]} 30. Rcc5 {[%clk 0:01:19]} 30... h5 {[%clk
0:02:09.2]} 31. b4 {[%clk 0:01:06.6]} 31... h4 {[%clk 0:02:09.5]} 32. Ra6 {[%clk
0:01:03.8]} 32... Rg5 {[%clk 0:02:08.5]} 33. b5 {[%clk 0:00:51.2]} 33... Rxg2
{[%clk 0:02:07.5]} 34. b6 {[%clk 0:00:51]} 34... Bxh3 {[%clk 0:02:04.7]} 35. Rc7
{[%clk 0:00:51]} 35... Rb8 {[%clk 0:02:04.5]} 36. b7 {[%clk 0:00:50.3]} 36...
Ne8 {[%clk 0:02:01.6]} 37. Ra8 {[%clk 0:00:47]} 37... Nxc7 {[%clk 0:01:51.3]}
38. Rxb8 {[%clk 0:00:47.6]} 38... Bf5 {[%clk 0:01:36.7]} 39. Nxf5+ {[%clk
0:00:44.5]} 39... gxf5 {[%clk 0:01:34.7]} 40. Rg8+ {[%clk 0:00:44.2]} 40... Kxg8
{[%clk 0:01:33.9]} 41. b8=Q+ {[%clk 0:00:43.6]} 41... Ne8 {[%clk 0:01:34.7]} 42.
Qxe8+ {[%clk 0:00:37.8]} 42... Kg7 {[%clk 0:01:36.1]} 43. Qe5+ {[%clk
0:00:38.2]} 43... f6 {[%clk 0:01:35]} 44. Qxf5 {[%clk 0:00:37.4]} 44... Rg5
{[%clk 0:01:33.3]} 45. Qh7+ {[%clk 0:00:37.7]} 45... Kf8 {[%clk 0:01:33.6]} 46.
Qxh4 {[%clk 0:00:38.5]} 46... Ke7 {[%clk 0:01:33.2]} 47. Kd4 {[%clk 0:00:37.5]}
47... Ke6 {[%clk 0:01:34.4]} 48. f4 {[%clk 0:00:36.8]} 48... Rg2 {[%clk
0:01:34.4]} 49. Qh3+ {[%clk 0:00:37.5]} 49... Rg4 {[%clk 0:01:33.6]} 50. Qxg4+
{[%clk 0:00:36.7]} 1-0

[Event "*** Titled Tuesday Blitz"]
[Site "Chess.com"]
[Date "2019.01.01"]
[Round "3"]
[White "Gr3egor"]
[Black "itisabigworld"]
[Result "1-0"]
[WhiteElo "2469"]
[BlackElo "2301"]
[TimeControl "180+2"]
[EndTime "13:36:13 PST"]
[Termination "Gr3egor won by resignation"]

1. e4 {[%clk 0:03:01.9]} 1... b6 {[%clk 0:02:58.6]} 2. d4 {[%clk 0:03:02.4]}
2... Bb7 {[%clk 0:03:00.5]} 3. Bd3 {[%clk 0:03:03.7]} 3... e6 {[%clk 0:03:01.8]}
4. Nf3 {[%clk 0:03:01.3]} 4... Nf6 {[%clk 0:03:02.9]} 5. Qe2 {[%clk 0:03:01.7]}
5... c5 {[%clk 0:03:01.7]} 6. c3 {[%clk 0:03:02.5]} 6... Be7 {[%clk 0:03:00.9]}
7. O-O {[%clk 0:03:02]} 7... d5 {[%clk 0:03:01.9]} 8. e5 {[%clk 0:03:03]} 8...
Nfd7 {[%clk 0:03:02.7]} 9. Bf4 {[%clk 0:02:58.5]} 9... Nc6 {[%clk 0:03:03.2]}
10. Nbd2 {[%clk 0:02:59.4]} 10... a6 {[%clk 0:03:03.6]} 11. a3 {[%clk
0:02:53.9]} 11... c4 {[%clk 0:03:04.4]} 12. Bc2 {[%clk 0:02:54.6]} 12... b5
{[%clk 0:03:05.4]} 13. Bg3 {[%clk 0:02:48.3]} 13... a5 {[%clk 0:03:04.8]} 14. b4
{[%clk 0:02:41.9]} 14... cxb3 {[%clk 0:03:02.7]} 15. Nxb3 {[%clk 0:02:42.4]}
15... Ba6 {[%clk 0:03:00.9]} 16. Bd3 {[%clk 0:02:43.8]} 16... Qb6 {[%clk
0:02:58.1]} 17. Rfb1 {[%clk 0:02:42.9]} 17... g6 {[%clk 0:02:54.2]} 18. Nbd2
{[%clk 0:02:31.8]} 18... Na7 {[%clk 0:02:38.4]} 19. a4 {[%clk 0:02:28.4]} 19...
O-O {[%clk 0:02:38.1]} 20. axb5 {[%clk 0:02:23.6]} 20... Bb7 {[%clk 0:02:39.1]}
21. c4 {[%clk 0:02:22.6]} 21... Nc8 {[%clk 0:02:07.9]} 22. c5 {[%clk 0:02:22.9]}
22... Bxc5 {[%clk 0:02:07.5]} 23. dxc5 {[%clk 0:02:24.3]} 23... Nxc5 {[%clk
0:02:09.4]} 24. Bc2 {[%clk 0:02:20.8]} 24... Qd8 {[%clk 0:02:01.8]} 25. Bf4
{[%clk 0:02:17]} 25... Nb6 {[%clk 0:02:01.1]} 26. Bg5 {[%clk 0:02:14.9]} 26...
Qc7 {[%clk 0:01:59.8]} 27. Bf6 {[%clk 0:02:06.8]} 27... Ncd7 {[%clk 0:02:00.6]}
28. Qe3 {[%clk 0:02:04.2]} 28... Nxf6 {[%clk 0:02:01.2]} 29. exf6 {[%clk
0:02:05.4]} 29... Nd7 {[%clk 0:01:57.6]} 30. Ba4 {[%clk 0:01:58.1]} 30... Nxf6
{[%clk 0:01:55.9]} 31. Rc1 {[%clk 0:01:53.3]} 31... Qd8 {[%clk 0:01:56.3]} 32.
Qd4 {[%clk 0:01:46.5]} 32... Nd7 {[%clk 0:01:52.6]} 33. Ne5 {[%clk 0:01:43.8]}
33... Nb6 {[%clk 0:01:21.8]} 34. Nc6 {[%clk 0:01:41.1]} 34... Bxc6 {[%clk
0:01:22]} 35. bxc6 {[%clk 0:01:43]} 35... Nxa4 {[%clk 0:01:21]} 36. Qxa4 {[%clk
0:01:37.8]} 36... Qc7 {[%clk 0:01:20.4]} 37. Rab1 {[%clk 0:01:36.5]} 37... Rfb8
{[%clk 0:01:20.6]} 38. Nf3 {[%clk 0:01:30]} 38... Rxb1 {[%clk 0:01:14.9]} 39.
Rxb1 {[%clk 0:01:30.5]} 39... Ra6 {[%clk 0:01:15.4]} 40. Nd4 {[%clk 0:01:19]}
40... e5 {[%clk 0:01:15.4]} 41. Qb5 {[%clk 0:01:19.9]} 41... Ra7 {[%clk
0:01:10.4]} 42. Qb8+ {[%clk 0:01:16.7]} 42... Kg7 {[%clk 0:01:11.1]} 43. Ne6+
{[%clk 0:00:57.3]} 43... fxe6 {[%clk 0:01:11]} 44. Rb7 {[%clk 0:00:58.9]} 44...
Rxb7 {[%clk 0:01:03.1]} 45. Qxb7 {[%clk 0:01:00]} 45... Qf7 {[%clk 0:01:02.7]}
46. Qxf7+ {[%clk 0:00:59.9]} 1-0

[Event "*** Titled Tuesday Blitz"]
[Site "Chess.com"]
[Date "2019.01.01"]
[Round "3"]
[White "DoHoChess"]
[Black "pedromartinez91"]
[Result "1-0"]
[WhiteElo "2607"]
[BlackElo "2418"]
[TimeControl "180+2"]
[EndTime "13:36:15 PST"]
[Termination "DoHoChess won by resignation"]

1. Nf3 {[%clk 0:03:01.9]} 1... d5 {[%clk 0:03:00.7]} 2. d4 {[%clk 0:03:01.2]}
2... Nf6 {[%clk 0:03:01.1]} 3. c4 {[%clk 0:03:01.2]} 3... dxc4 {[%clk
0:03:01.7]} 4. e3 {[%clk 0:02:58.8]} 4... e6 {[%clk 0:03:02.1]} 5. Bxc4 {[%clk
0:02:59.5]} 5... c5 {[%clk 0:03:04]} 6. O-O {[%clk 0:02:59.3]} 6... Nc6 {[%clk
0:03:05.2]} 7. Nc3 {[%clk 0:02:43.6]} 7... cxd4 {[%clk 0:03:06.2]} 8. exd4
{[%clk 0:02:43.6]} 8... Be7 {[%clk 0:03:07.7]} 9. Re1 {[%clk 0:02:42.6]} 9...
O-O {[%clk 0:03:08.4]} 10. a3 {[%clk 0:02:44.1]} 10... Qc7 {[%clk 0:03:08.1]}
11. Bg5 {[%clk 0:02:33.9]} 11... Rd8 {[%clk 0:03:08.8]} 12. Ba2 {[%clk
0:02:07.9]} 12... Qb6 {[%clk 0:03:09.4]} 13. d5 {[%clk 0:01:56.5]} 13... Qxb2
{[%clk 0:03:09.2]} 14. Rc1 {[%clk 0:01:25]} 14... exd5 {[%clk 0:03:02.4]} 15.
Bb1 {[%clk 0:01:05.9]} 15... Be6 {[%clk 0:02:56.6]} 16. Qd3 {[%clk 0:01:04.6]}
16... g6 {[%clk 0:02:57.5]} 17. Nb5 {[%clk 0:01:00.5]} 17... Ne4 {[%clk
0:02:48.8]} 18. Bxe7 {[%clk 0:00:58.3]} 18... Nxe7 {[%clk 0:02:50.7]} 19. Nc7
{[%clk 0:00:59.3]} 19... Rac8 {[%clk 0:02:46.9]} 20. Qe3 {[%clk 0:00:51]} 20...
Nf5 {[%clk 0:02:43.4]} 21. Qxa7 {[%clk 0:00:51.8]} 21... b6 {[%clk 0:02:02]} 22.
Rc2 {[%clk 0:00:48.7]} 22... Qb3 {[%clk 0:01:43.2]} 23. Nxe6 {[%clk 0:00:45]}
23... fxe6 {[%clk 0:01:42.8]} 24. Rxc8 {[%clk 0:00:46]} 24... Rxc8 {[%clk
0:01:41.5]} 25. Bxe4 {[%clk 0:00:47.5]} 25... dxe4 {[%clk 0:01:41.7]} 26. Ng5
{[%clk 0:00:49.1]} 26... Ng7 {[%clk 0:01:22.7]} 27. Qf7+ {[%clk 0:00:47.2]}
27... Kh8 {[%clk 0:01:23.3]} 28. h4 {[%clk 0:00:45.8]} 28... h6 {[%clk
0:01:02.8]} 29. Nxe4 {[%clk 0:00:43.1]} 29... Qd5 {[%clk 0:00:32]} 30. Qxg6
{[%clk 0:00:41.9]} 30... Qf5 {[%clk 0:00:33.1]} 31. Qxh6+ {[%clk 0:00:41]} 31...
Kg8 {[%clk 0:00:34]} 32. Nd6 {[%clk 0:00:38.8]} 32... Qe5 {[%clk 0:00:12.3]} 33.
Rxe5 {[%clk 0:00:37.9]} 1-0

[Event "*** Titled Tuesday Blitz"]
[Site "Chess.com"]
[Date "2019.01.01"]
[Round "3"]
[White "TrimitziosP7"]
[Black "SARGISMV"]
[Result "1-0"]
[WhiteElo "2606"]
[BlackElo "2416"]
[TimeControl "180+2"]
[EndTime "13:36:16 PST"]
[Termination "TrimitziosP7 won by resignation"]

1. Nf3 {[%clk 0:03:01.9]} 1... Nf6 {[%clk 0:03:00.3]} 2. c4 {[%clk 0:03:02.7]}
2... g6 {[%clk 0:02:57.5]} 3. Nc3 {[%clk 0:02:56.8]} 3... c5 {[%clk 0:02:54.9]}
4. d4 {[%clk 0:02:52.8]} 4... cxd4 {[%clk 0:02:55.2]} 5. Nxd4 {[%clk 0:02:53.7]}
5... Bg7 {[%clk 0:02:57.1]} 6. e4 {[%clk 0:02:48.8]} 6... O-O {[%clk 0:02:54.5]}
7. Be2 {[%clk 0:02:43.5]} 7... Nc6 {[%clk 0:02:52.3]} 8. Be3 {[%clk 0:02:41.8]}
8... d6 {[%clk 0:02:53]} 9. O-O {[%clk 0:02:36.6]} 9... Bd7 {[%clk 0:02:53.7]}
10. Qd2 {[%clk 0:02:32.8]} 10... Nxd4 {[%clk 0:02:54.4]} 11. Bxd4 {[%clk
0:02:30.7]} 11... Bc6 {[%clk 0:02:56.3]} 12. f3 {[%clk 0:02:29.8]} 12... a5
{[%clk 0:02:56.9]} 13. b3 {[%clk 0:02:27.3]} 13... Nd7 {[%clk 0:02:55.6]} 14.
Be3 {[%clk 0:02:26.9]} 14... Nc5 {[%clk 0:02:56]} 15. Rab1 {[%clk 0:02:24]}
15... Qb6 {[%clk 0:02:53.6]} 16. Rfc1 {[%clk 0:02:22]} 16... Qb4 {[%clk
0:02:50.2]} 17. Rc2 {[%clk 0:02:18.2]} 17... Rfc8 {[%clk 0:02:28.8]} 18. Qc1
{[%clk 0:02:15.7]} 18... Qb6 {[%clk 0:02:09.8]} 19. Bf1 {[%clk 0:02:15.4]} 19...
Qd8 {[%clk 0:01:44.4]} 20. Qd2 {[%clk 0:02:11.2]} 20... Qd7 {[%clk 0:01:22.9]}
21. a3 {[%clk 0:02:02.5]} 21... Qe6 {[%clk 0:01:09.1]} 22. b4 {[%clk 0:01:54.6]}
22... axb4 {[%clk 0:01:09.5]} 23. axb4 {[%clk 0:01:56.5]} 23... Na4 {[%clk
0:01:11.3]} 24. Ne2 {[%clk 0:01:47.8]} 24... f5 {[%clk 0:00:41.5]} 25. exf5
{[%clk 0:01:38.8]} 25... Qxf5 {[%clk 0:00:38.9]} 26. Nd4 {[%clk 0:01:36.7]}
26... Qh5 {[%clk 0:00:35.7]} 27. Re1 {[%clk 0:01:32.6]} 27... Re8 {[%clk
0:00:24.4]} 28. Nb5 {[%clk 0:01:23.4]} 28... Bxb5 {[%clk 0:00:23.6]} 29. cxb5
{[%clk 0:01:25.3]} 29... Rac8 {[%clk 0:00:20.1]} 30. Rec1 {[%clk 0:01:18.6]}
30... Rxc2 {[%clk 0:00:19.9]} 31. Rxc2 {[%clk 0:01:20.5]} 31... Kh8 {[%clk
0:00:19.2]} 32. Rc7 {[%clk 0:01:17.5]} 32... Qe5 {[%clk 0:00:18.1]} 33. Rxb7
{[%clk 0:01:11.8]} 33... Nc3 {[%clk 0:00:19]} 34. b6 {[%clk 0:01:07.3]} 34...
Nd5 {[%clk 0:00:19.6]} 35. Bf2 {[%clk 0:01:05.9]} 35... Qa1 {[%clk 0:00:07.6]}
36. Ra7 {[%clk 0:01:05.4]} 36... Nxb6 {[%clk 0:00:06.6]} 37. Rxa1 {[%clk
0:01:05.2]} 37... Nc4 {[%clk 0:00:04.5]} 38. Bxc4 {[%clk 0:01:05.5]} 1-0

[Event "*** Titled Tuesday Blitz"]
[Site "Chess.com"]
[Date "2019.01.01"]
[Round "3"]
[White "Caminator2000"]
[Black "NCchamp"]
[Result "1-0"]
[WhiteElo "2379"]
[BlackElo "2187"]
[TimeControl "180+2"]
[EndTime "13:36:20 PST"]
[Termination "Caminator2000 won by checkmate"]

1. Nf3 {[%clk 0:03:01.9]} 1... Nf6 {[%clk 0:02:57.6]} 2. c4 {[%clk 0:03:01.7]}
2... g6 {[%clk 0:02:58.1]} 3. Nc3 {[%clk 0:03:01.2]} 3... Bg7 {[%clk 0:02:59.2]}
4. e4 {[%clk 0:02:54.9]} 4... d6 {[%clk 0:02:59.6]} 5. d4 {[%clk 0:02:55.5]}
5... O-O {[%clk 0:02:56.3]} 6. Be2 {[%clk 0:02:55.9]} 6... Na6 {[%clk 0:02:57]}
7. O-O {[%clk 0:02:49.7]} 7... e5 {[%clk 0:02:58]} 8. Re1 {[%clk 0:02:39.6]}
8... exd4 {[%clk 0:02:54.2]} 9. Nxd4 {[%clk 0:02:39.7]} 9... Nc5 {[%clk
0:02:54.7]} 10. f3 {[%clk 0:02:34.7]} 10... a5 {[%clk 0:02:55.3]} 11. Be3 {[%clk
0:02:28.5]} 11... c6 {[%clk 0:02:48.2]} 12. Kh1 {[%clk 0:02:24.4]} 12... a4
{[%clk 0:02:46.7]} 13. Qd2 {[%clk 0:02:20.5]} 13... Qa5 {[%clk 0:02:40.9]} 14.
Rad1 {[%clk 0:01:57.2]} 14... Rd8 {[%clk 0:02:32.5]} 15. Qc2 {[%clk 0:00:46.2]}
15... Be6 {[%clk 0:02:21.8]} 16. Bg1 {[%clk 0:00:43.8]} 16... Qb4 {[%clk
0:02:14.3]} 17. a3 {[%clk 0:00:42.9]} 17... Qa5 {[%clk 0:02:10.7]} 18. Rd2
{[%clk 0:00:39.5]} 18... Ne8 {[%clk 0:02:04.2]} 19. Be3 {[%clk 0:00:34.7]} 19...
Qa6 {[%clk 0:01:59.2]} 20. Nxe6 {[%clk 0:00:34]} 20... Nxe6 {[%clk 0:01:58.8]}
21. c5 {[%clk 0:00:34.5]} 21... Qa5 {[%clk 0:01:53.1]} 22. cxd6 {[%clk
0:00:34.1]} 22... Nxd6 {[%clk 0:01:51.3]} 23. Red1 {[%clk 0:00:34.8]} 23... Be5
{[%clk 0:01:02.2]} 24. g3 {[%clk 0:00:28.9]} 24... Bxc3 {[%clk 0:00:42.1]} 25.
bxc3 {[%clk 0:00:27.8]} 25... Nb5 {[%clk 0:00:43.4]} 26. c4 {[%clk 0:00:21.5]}
26... Nxa3 {[%clk 0:00:36.7]} 27. Qb2 {[%clk 0:00:21.7]} 27... Nxc4 {[%clk
0:00:21.1]} 28. Bxc4 {[%clk 0:00:22]} 28... a3 {[%clk 0:00:20.3]} 29. Qa2 {[%clk
0:00:23.2]} 29... Rxd2 {[%clk 0:00:17.5]} 30. Rxd2 {[%clk 0:00:23.7]} 30... Nd8
{[%clk 0:00:18.7]} 31. Kg2 {[%clk 0:00:17.7]} 31... b5 {[%clk 0:00:19.7]} 32.
Rxd8+ {[%clk 0:00:17.7]} 32... Rxd8 {[%clk 0:00:20.4]} 33. Bxf7+ {[%clk
0:00:19]} 33... Kf8 {[%clk 0:00:21.8]} 34. Bh6+ {[%clk 0:00:18.6]} 34... Ke7
{[%clk 0:00:21.1]} 35. Qe6# {[%clk 0:00:17.8]} 1-0